Cogmind - Beta 13 X2 @@@ ROGUE MODE // 2024.01.21 @ 20:00:25 // Winter2019/RPGLIKE Player: Terminus Result: Destroyed by NK-0LA with NK-0LA's Tesla Doomcannon Performance ------------- Evolutions (1) 500 Regions Visited (6) 1200 Robots Destroyed (106) 530 Value Destroyed (2792) 2792 Prototype IDs (8) 160 Alien Tech Used (0) 0 Bonus (498) 498 TOTAL SCORE: 5680 Bonus ------- High Alert Combat Kills 498 Cogmind --------- Core Integrity 0/600 Matter 235/500 Energy 484/490 System Corruption 4% Temperature Cool (0) Movement Treading (160) Location -8/Mines Parts ------- > --- POWER (2) -------- Cooled Ion Engine Reinforced Fission Core > --- PROPULSION (3) --- Light Treads Light Treads Light Treads > --- UTILITY (5) ------ Improved Heat Sink Experimental Heat Sink High-capacity Matter Pod Experimental Targeting Computer Improved Armor Integrity Analyzer > --- WEAPON (6) ------- Improved Assault Rifle Improved Assault Rifle Minigun Minigun Minigun Minigun > --- INVENTORY (3) ---- Heat Sink Improved EM Shotgun Peak State ------------ > --- POWER ------------ Cooled Ion Engine Reinforced Fission Core > --- PROPULSION ------- Light Treads Light Treads Light Treads > --- UTILITY ---------- Improved Heat Sink Experimental Heat Sink High-capacity Matter Pod Experimental Targeting Computer Improved Armor Integrity Analyzer > --- WEAPON ----------- Improved Assault Rifle Improved Assault Rifle Minigun Minigun Minigun Minigun > --- INVENTORY -------- Heat Sink Improved EM Shotgun [Rating: 54] Favorites ----------- Power Cooled Ion Engine Engine Cooled Ion Engine Power Core Reinforced Fission Core Propulsion Light Treads Treads Light Treads Utility Heat Sink Device Heat Sink Storage High-capacity Matter Pod Processor Improved Targeting Computer Weapon Minigun Energy Gun Medium Laser Ballistic Gun Minigun Build | -11 -10 -10 -9 -9 -9 -8 ------- Run | Yrd Mat Min Mat Min Exi Min Slots Evolved 12 | 4 2 1 5 . . . Power 1 | . . . 1 . . . Propulsion 2 | 1 . . 1 . . . Utility 4 | 1 1 . 2 . . . Weapon 5 | 2 1 1 1 . . . Parts Attached 53 | 6 10 5 24 1 6 1 Power 7 | 1 1 . 4 . 1 . Engine 6 | 1 1 . 4 . . . Core 1 | . . . . . 1 . Reactor . | . . . . . . . Propulsion 6 | 2 2 . 1 . 1 . Treads 6 | 2 2 . 1 . 1 . Leg . | . . . . . . . Wheel . | . . . . . . . Hover . | . . . . . . . Flight . | . . . . . . . Utility 11 | . 3 1 3 1 2 1 Device 6 | . 2 . 2 1 1 . Storage 2 | . 1 1 . . . . Processor 3 | . . . 1 . 1 1 Hackware . | . . . . . . . Protection . | . . . . . . . Artifact . | . . . . . . . Weapon 29 | 3 4 4 16 . 2 . Energy Gun 8 | 3 1 3 . . 1 . Energy Cannon . | . . . . . . . Ballistic Gun 21 | . 3 1 16 . 1 . Ballistic Cannon . | . . . . . . . Launcher . | . . . . . . . Special Weapon . | . . . . . . . Impact Weapon . | . . . . . . . Slashing Weapon . | . . . . . . . Piercing Weapon . | . . . . . . . Special Melee Weapon . | . . . . . . . Unidentified Prototypes 3 | . . . 1 . 2 . Parts Lost . | . . . . . . . Power . | . . . . . . . Propulsion . | . . . . . . . Utility . | . . . . . . . Weapon . | . . . . . . . Highest Loss Streak . | . . . . . . . To Critical Strikes . | . . . . . . . Average Slot Usage (%) 96 | . 92 97 94 100 99 100 Engine 10 | . 10 9 11 12 8 6 Treads 18 | . 22 18 15 18 17 18 Device 16 | . 15 18 15 18 18 15 Storage 6 | . 4 9 6 6 6 6 Processor 3 | . . . 3 6 6 9 Energy Gun 6 | . 19 15 1 . . . Ballistic Gun 32 | . 19 27 37 37 36 37 Naked Turns . | . . . . . . . Heaviest Build 54 | 11 13 18 41 41 54 53 Greatest Support 60 | 40 40 40 60 60 60 60 Greatest Overweight (x) 4 | 1 4 . . . . . Average Overweight (x) . | . . . . . . . Largest Inventory Capacity 3 | 1 1 1 3 3 3 3 Average Capacity 2 | . 1 1 2 3 3 3 Most Carried 3 | . 1 1 3 3 3 2 Average Carried 1 | . . 1 2 3 2 2 Final Capacity 3 | 1 1 1 3 3 3 3 Final Carried 3 | . 1 1 3 3 2 2 Class Distribution -------------------- 59% | Scavenger-Executioner 23% | Scavenger-Gunner 9% | Gunner 7% | Executioner Dominant Class ---------------- Scavenger-Gunner | -10/Materials Scavenger-Gunner | -10/Mines Scavenger-Executioner | -9/Materials Scavenger-Executioner | -9/Mines Scavenger-Executioner | -9/Exiles Scavenger-Executioner | -8/Mines Resources | -11 -10 -10 -9 -9 -9 -8 ----------- Run | Yrd Mat Min Mat Min Exi Min Matter Collected 3516 | 257 229 81 1521 595 797 36 Remotely . | . . . . . . . Salvage Created 3295 | . 698 44 1959 262 332 . Parts 251 | . 46 5 134 21 45 . Haulers Intercepted 8 | . 2 . 6 . . . Recyclers Shooed 5 | . . . 5 . . . Parts Field Recycled . | . . . . . . . Retrieved Matter . | . . . . . . . Parts Self-Destructed . | . . . . . . . Prevented . | . . . . . . . Kills | -11 -10 -10 -9 -9 -9 -8 ------- Run | Yrd Mat Min Mat Min Exi Min Combat Hostiles Destroyed 92 | . 18 2 43 21 8 . Guns 91 | . 18 2 42 21 8 . AOE 1 | . . . 1 . . . Classes Destroyed 14 | . 6 . 4 2 2 . Worker 1 | . . . 1 . . . Builder 1 | . . . . 1 . . Tunneler 2 | . 1 . 1 . . . Hauler 8 | . 2 . 6 . . . Recycler 5 | . 2 . 3 . . . Operator 2 | . . . 2 . . . Turret 1 | . . . . . 1 . Watcher 8 | . 3 . 5 . . . Swarmer 16 | . 9 . 3 4 . . Grunt 44 | . 9 2 28 5 . . Brawler 3 | . . . 2 1 . . Sentry 10 | . . . 10 . . . Zionite 8 | . . . . . 8 . Assembled 18 | . . . . 11 7 . Best Kill Streak 9 | . 5 2 6 5 9 . Combat Bots Only 7 | . 3 2 5 4 7 . Max Kills in Single Turn 4 | . 1 1 2 4 3 . Gunslinging 2 | . . . 1 2 2 . Exploded 1 | . . . 1 . . . Melee . | . . . . . . . Uniques/NPCs Destroyed 4 | . . . . . 4 . 8R-AWN (-9/Exiles) EX-BIN (-9/Exiles) EX-HEX (-9/Exiles) EX-DEC (-9/Exiles) Combat | -11 -10 -10 -9 -9 -9 -8 -------- Run | Yrd Mat Min Mat Min Exi Min Hostile Shots Fired 256 | . 73 5 69 13 60 36 Missed 72 | . 15 3 23 3 12 16 Damage Taken 2873 | . 574 29 562 121 1164 423 Core 2267 | . 442 22 448 91 928 336 Absorbed by Shields . | . . . . . . . Redirected to Core 2030 | . 385 22 380 91 838 314 Core Remaining (%) 98 | 100 . 96 . . . . Volleys Fired 250 | . 54 17 96 27 50 6 Largest 6 | . 4 4 6 6 6 6 Hottest 150 | . 140 110 150 146 146 146 Shots Fired 1192 | . 182 29 531 162 252 36 Gun 1192 | . 182 29 531 162 252 36 Cannon . | . . . . . . . Launcher . | . . . . . . . Special . | . . . . . . . Kinetic 1041 | . 105 12 482 162 244 36 Thermal 126 | . 73 4 49 . . . Explosive . | . . . . . . . Electromagnetic 25 | . 4 13 . . 8 . Robot Hit Streak 24 | . 13 4 24 7 21 7 Robot Miss Streak 4 | . 3 3 3 4 4 1 Penetration Max . | . . . . . . . Secondary Targets 24 | . 7 . 8 5 4 . Max Gunslinging Chain 2 | . 1 . 2 2 2 . Shots Hit Robots 676 | . 117 8 289 64 170 28 Core Hits 242 | . 43 6 107 33 51 2 Critical Kills 2 | . . . 1 1 . . Critical Parts Destroyed 2 | . . . 1 . 1 . Critical Strikes 12 | . 5 . 5 1 1 . Burn 8 | . 5 . 3 . . . Destroy 4 | . . . 2 1 1 . Melee Attacks . | . . . . . . . Impact . | . . . . . . . Slashing . | . . . . . . . Piercing . | . . . . . . . Sneak Attacks . | . . . . . . . Combat Hostiles . | . . . . . . . Follow-up Attacks . | . . . . . . . Damage Inflicted 9776 | . 1200 82 4310 1109 2622 453 Guns 9361 | . 1176 81 3959 1070 2622 453 Cannons . | . . . . . . . Explosions 166 | . . . 166 . . . Melee . | . . . . . . . Ramming 249 | . 24 1 185 39 . . Kinetic 8229 | . 605 42 3444 1070 2615 453 Thermal 1088 | . 534 39 515 . . . Explosive 166 | . . . 166 . . . Electromagnetic 44 | . 37 . . . 7 . Impact . | . . . . . . . Slashing . | . . . . . . . Piercing . | . . . . . . . Highest Corruption 4 | . 2 2 . . . 4 Average Corruption 2 | . 2 2 . . . 2 Corruption Purged . | . . . . . . . Corruption Blocked . | . . . . . . . Effects 16 | . 3 13 . . . . Message Errors 5 | . 1 4 . . . . Matter Fused 4 | . 2 2 . . . . Energy Discharges 2 | . . 2 . . . . Data Loss (minor) 3 | . . 3 . . . . Data Loss (major) 1 | . . 1 . . . . Alerts 1 | . . 1 . . . . Overload Shots . | . . . . . . . Overflow Damage . | . . . . . . . Projectiles . | . . . . . . . Explosions . | . . . . . . . Melee . | . . . . . . . Knockbacks 5 | . . . 4 1 . . Impact 5 | . . . 4 1 . . Kinetic . | . . . . . . . Secondary . | . . . . . . . Self-Inflicted Damage . | . . . . . . . Shots . | . . . . . . . Rammed 41 | . 7 1 24 9 . . Targets Rammed 43 | . 7 1 26 9 . . Kicked . | . . . . . . . Crushed 2 | . . . 2 . . . Highest Temperature 214 | . 214 39 156 17 . . Average Temperature 40 | . 52 25 34 11 . . Received Heat Transfer 510 | . 174 18 294 24 . . Siege Activations . | . . . . . . . Robots Corrupted . | . . . . . . . Combat Hostiles . | . . . . . . . Parts Fried . | . . . . . . . Impact Corruptions . | . . . . . . . Robots Melted . | . . . . . . . Combat Hostiles . | . . . . . . . Parts Melted 6 | . 4 . 2 . . . Heat Transferred 3713 | . 1924 111 1678 . . . Parts Sabotaged . | . . . . . . . Parts Stolen . | . . . . . . . Parts Stripped . | . . . . . . . Power Chain Reactions . | . . . . . . . Missiles Intercepted . | . . . . . . . Alert | -11 -10 -10 -9 -9 -9 -8 ------- Run | Yrd Mat Min Mat Min Exi Min Peak Influence 1232 | . 274 278 1232 742 . . Initial 462 | . . 63 . 462 . . Average 473 | . 143 102 768 513 . . Maximum Alert Level 4 | . 1 1 4 3 . . Low Security (%) 29 | 100 56 84 10 . . 100 Level 1 22 | . 43 15 19 15 . . Level 2 25 | . . . 15 80 . . Level 3 6 | . . . 14 3 . . Level 4 16 | . . . 40 . . . Level 5 . | . . . . . . . High Security . | . . . . . . . Max Security . | . . . . . . . Squads Dispatched 12 | . 4 . 8 . . . Investigation 7 | . 3 . 4 . . . Extermination . | . . . . . . . Reinforcement 5 | . 1 . 4 . . . Assault . | . . . . . . . Garrison . | . . . . . . . Intercept . | . . . . . . . Searches Triggered . | . . . . . . . Construction Impeded . | . . . . . . . Haulers Reinforced . | . . . . . . . Active Scanning Responses . | . . . . . . . Cargo Convoy Interrupts . | . . . . . . . Stealth | -11 -10 -10 -9 -9 -9 -8 --------- Run | Yrd Mat Min Mat Min Exi Min Distress Signals 2 | . 1 . 1 . . . Communications Jammed . | . . . . . . . Distress Signals . | . . . . . . . Times Spotted 131 | . 24 2 59 18 27 1 Peak Tracking Total 9 | . 3 2 7 4 9 1 Tactical Retreats 4 | . . . 1 . 3 . Traps | -11 -10 -10 -9 -9 -9 -8 ------- Run | Yrd Mat Min Mat Min Exi Min Traps Triggered 8 | . 5 . 3 . . . Indirectly . | . . . . . . . Trap Hack Attempts . | . . . . . . . Triggered . | . . . . . . . Disarmed . | . . . . . . . Reprogrammed . | . . . . . . . Reused . | . . . . . . . Traps Extracted . | . . . . . . . Installed . | . . . . . . . Triggered . | . . . . . . . Machines | -11 -10 -10 -9 -9 -9 -8 ---------- Run | Yrd Mat Min Mat Min Exi Min Machines Disabled 55 | . . 12 23 7 13 . Max in Single Turn 6 | . . 1 6 2 1 . Machines Repaired . | . . . . . . . Machines Dismantled . | . . . . . . . Machines Sabotaged . | . . . . . . . Overloaded Fab Kills . | . . . . . . . Hacking | -11 -10 -10 -9 -9 -9 -8 --------- Run | Yrd Mat Min Mat Min Exi Min Machines Accessed 18 | . 7 . 9 1 1 . Terminals 14 | . 6 . 7 1 . . Fabricators . | . . . . . . . Repair Stations . | . . . . . . . Recycling Units 3 | . 1 . 2 . . . Scanalyzers . | . . . . . . . Garrison Access . | . . . . . . . Total Hacks 56 | . 25 . 25 2 4 . Successful 33 | . 13 . 16 . 4 . Failed 22 | . 11 . 9 2 . . Catastrophic 2 | . 2 . . . . . Database Lockouts 1 | . 1 . . . . . Manual 39 | . 19 . 18 2 . . Terminals 48 | . 24 . 22 2 . . Fabricators . | . . . . . . . Repair Stations . | . . . . . . . Recycling Units 4 | . 1 . 3 . . . Scanalyzers . | . . . . . . . Garrison Access . | . . . . . . . Terminal Hacks 20 | . 7 . 9 . 4 . Record 4 | . . . . . 4 . Robot Analysis 3 | . 2 . 1 . . . Prototype ID Bank 3 | . 2 . 1 . . . Terminal Index 1 | . . . 1 . . . Repair Station Index 1 | . 1 . . . . . Alert Level 3 | . 1 . 2 . . . Unreport Threat 1 | . . . 1 . . . Zone Layout 4 | . 1 . 3 . . . Fabricator Hacks . | . . . . . . . Repair Station Hacks . | . . . . . . . Recycling Unit Hacks . | . . . . . . . Scanalyzer . | . . . . . . . Garrison Access Hacks . | . . . . . . . Unauthorized Hacks 13 | . 6 . 7 . . . Terminals 10 | . 5 . 5 . . . Botnet 10 | . 5 . 5 . . . Fabricators . | . . . . . . . Repair Stations . | . . . . . . . Recycling Units 3 | . 1 . 2 . . . Tunnel 3 | . 1 . 2 . . . Scanalyzers . | . . . . . . . Garrison Access . | . . . . . . . Data Cores Recovered . | . . . . . . . Used . | . . . . . . . Hacking Detections 15 | . 6 . 8 1 . . Full Trace Events 4 | . 3 . 1 . . . Feedback Events . | . . . . . . . Feedback Blocked . | . . . . . . . Robot Schematics Acquired . | . . . . . . . Robots Built . | . . . . . . . Authchips . | . . . . . . . Time . | . . . . . . . Total Robot Build Rating . | . . . . . . . Part Schematics Acquired . | . . . . . . . Parts Built . | . . . . . . . Authchips . | . . . . . . . Time . | . . . . . . . Total Part Build Rating . | . . . . . . . Parts Repaired . | . . . . . . . Time . | . . . . . . . Parts Recycled . | . . . . . . . Recycled Matter . | . . . . . . . Retrieved Matter . | . . . . . . . Retrieved Components . | . . . . . . . Parts Scanalyzed . | . . . . . . . Part Schematics Acquired . | . . . . . . . Parts Damaged . | . . . . . . . Bothacking | -11 -10 -10 -9 -9 -9 -8 ------------ Run | Yrd Mat Min Mat Min Exi Min Used RIF Installer . | . . . . . . . Robots Hacked . | . . . . . . . Non-combat . | . . . . . . . Combat . | . . . . . . . Robot Hacks Applied . | . . . . . . . Relay Couplers Released . | . . . . . . . Fabnet Peak Effective % . | . . . . . . . Robots Rewired . | . . . . . . . Allies Hacked . | . . . . . . . Hacks Repelled . | . . . . . . . Allies | -11 -10 -10 -9 -9 -9 -8 -------- Run | Yrd Mat Min Mat Min Exi Min Total Allies . | . . . . . . . Largest Group . | . . . . . . . Highest-Rated Group . | . . . . . . . Highest-Rated Ally . | . . . . . . . Total Orders . | . . . . . . . Ally Attacks . | . . . . . . . Total Damage . | . . . . . . . Kills . | . . . . . . . Allies Corrupted . | . . . . . . . Allies Melted . | . . . . . . . Intel | -11 -10 -10 -9 -9 -9 -8 ------- Run | Yrd Mat Min Mat Min Exi Min Robot Analysis Total 3 | . 2 . 1 . . . Derelict Logs Recovered 4 | . . 2 . 2 . . Drone Launches . | . . . . . . . Drone Recoveries . | . . . . . . . Exploration | -11 -10 -10 -9 -9 -9 -8 ------------- Run | Yrd Mat Min Mat Min Exi Min Turns Passed 6934 | 65 1238 846 2439 1428 873 45 Spaces Moved 3424 | 47 619 499 1192 650 402 15 Core 21 | 19 2 . . . . . Treads 3403 | 28 617 499 1192 650 402 15 Legs . | . . . . . . . Wheels . | . . . . . . . Hover . | . . . . . . . Flight . | . . . . . . . Fastest Speed 50 | 50 160 160 160 160 160 160 Average Speed 159 | 120 160 160 160 160 160 160 Slowest Speed 250 | 160 250 160 160 160 160 160 Overloaded Moves . | . . . . . . . Propulsion Burnouts . | . . . . . . . Robots Hopped . | . . . . . . . Cave-ins Triggered . | . . . . . . . Exploration Rate (%) 67 | 3 97 97 93 95 74 11 Regions Visited 6 Branch Regions 4 Pre-discovered Areas 6 | . 1 1 2 1 1 . Known Exits Taken . | . . . . . . . Unknown Exits Taken 6 | 1 1 1 1 1 1 . Scrap Searched 4 | . . 1 . 2 . 1 Spaces Dug . | . . . . . . . Terrain Destroyed 153 | . . . 127 26 . . Melee . | . . . . . . . Projectile . | . . . . . . . AOE 153 | . . . 127 26 . . Terrain Rammed . | . . . . . . . Walls Destroyed . | . . . . . . . Machines Disabled . | . . . . . . . Actions | -11 -10 -10 -9 -9 -9 -8 --------- Run | Yrd Mat Min Mat Min Exi Min Total 4343 | 52 752 524 1484 974 532 25 Wait 436 | . 36 2 81 274 40 3 Move 3418 | 46 618 498 1191 649 401 15 Hop . | . . . . . . . Pick Up 5 | . 1 . 3 . 1 . Fast Attach 42 | 6 9 1 22 . 4 . Attach . | . . . . . . . Detach . | . . . . . . . Swap 11 | . 1 4 2 1 2 1 Drop 24 | . 1 1 16 1 5 . Fire 250 | . 54 17 96 27 50 6 Melee . | . . . . . . . Ram . | . . . . . . . Kick . | . . . . . . . Crush 43 | . 7 1 26 9 . . Escape Stasis . | . . . . . . . Rewire . | . . . . . . . Trap . | . . . . . . . Miscellaneous 114 | . 25 . 47 13 29 . Route ------- -11/Scrapyard -10/Materials (discovered 4 exits: *Mat x3 / [*Min]) -10/Mines (discovered 2 exits: *Mat x2) -9/Materials (discovered 4 exits: [*Mat x3] / *Min) -9/Mines (discovered 4 exits: [*Mat x2] / *Exi / [*Zio]) -9/Exiles (discovered 2 exits: [*Min x2]) -8/Mines History --------- Turn | Location | Event 4 | -11/Scrapyard | Upgraded with Propulsion slot (x1) 4 | -11/Scrapyard | Upgraded with Utility slot (x1) 4 | -11/Scrapyard | Upgraded with Weapon slot (x2) 11 | -11/Scrapyard | Discovered new exit (range 16) 66 | -11/Scrapyard | Entered Materials 172 | -10/Materials | Discovered new exit (range 7) 324 | -10/Materials | Build established: Gunner 611 | -10/Materials | Discovered new exit (range 10) 691 | -10/Materials | Reached level 2 704 | -10/Materials | Upgraded with Utility slot (x1) 704 | -10/Materials | Upgraded with Weapon slot (x1) 967 | -10/Materials | Build established: Scavenger-Gunner 1006 | -10/Materials | Discovered new exit (range 10) 1049 | -10/Materials | Central database locked down 1188 | -10/Materials | Discovered new exit (range 12) 1304 | -10/Materials | Entered Mines 1306 | -10/Mines | Reached level 3 1338 | -10/Mines | Upgraded with Weapon slot (x1) 1524 | -10/Mines | Discovered new exit (range 7) 1804 | -10/Mines | Discovered new exit (range 4) 2088 | -10/Mines | Learned 2 Materials zone layouts 2150 | -10/Mines | Entered Materials 2152 | -9/Materials | Reached level 4 2283 | -9/Materials | Reached level 5 2288 | -9/Materials | Upgraded with Utility slot (x1) 2288 | -9/Materials | Upgraded with Weapon slot (x1) 2490 | -9/Materials | Reached level 6 2587 | -9/Materials | Build established: Scavenger-Executioner 2646 | -9/Materials | Upgraded with Power slot (x1) 2753 | -9/Materials | Discovered new exit (range 11) 3037 | -9/Materials | Reached level 7 3268 | -9/Materials | Reached level 8 3298 | -9/Materials | Build established: Executioner 3377 | -9/Materials | Upgraded with Propulsion slot (x1) 3377 | -9/Materials | Upgraded with Utility slot (x1) 3404 | -9/Materials | Discovered new exit (range 8) 3556 | -9/Materials | Discovered new exit (range 15) 3585 | -9/Materials | Reached level 9 3715 | -9/Materials | Discovered new exit (range 16) 3852 | -9/Materials | Build established: Scavenger-Executioner 4589 | -9/Materials | Entered Mines 4613 | -9/Mines | Discovered new exit (range 13) 4647 | -9/Mines | Discovered new exit (range 9) 4851 | -9/Mines | Deemed a non-threat by the Exiles lab entrance 4895 | -9/Mines | Learned Materials trap positions 4943 | -9/Mines | Reached level 10 4971 | -9/Mines | Assembled infested the area 5470 | -9/Mines | Learned Materials stockpile data 5594 | -9/Mines | A Derelict revealed a hidden shortcut to a safe place 5708 | -9/Mines | Joined a pair of Derelicts in attacking an 0b10 outpost 6011 | -9/Mines | Discovered new exit (range 5) 6017 | -9/Mines | Entered Exiles 6041 | -9/Exiles | Discovered new exit (range 15) 6057 | -9/Exiles | Met 8R-AWN 6083 | -9/Exiles | Met EX-HEX 6158 | -9/Exiles | Met EX-DEC 6187 | -9/Exiles | Learned location of Zion (-7) 6239 | -9/Exiles | Attacked by the Exiles 6298 | -9/Exiles | Destroyed 7 combat bots 6361 | -9/Exiles | Core integrity fell below 50% 6381 | -9/Exiles | Core integrity fell below 20% 6383 | -9/Exiles | Destroyed 8R-AWN 6411 | -9/Exiles | Found Prototype Processor 6411 | -9/Exiles | Identified Exp. Targeting Computer 6598 | -9/Exiles | Destroyed EX-BIN 6609 | -9/Exiles | Destroyed EX-HEX 6666 | -9/Exiles | Destroyed EX-DEC 6877 | -9/Exiles | Discovered new exit (range 10) 6890 | -9/Exiles | Entered Mines 6914 | -8/Mines | NK-0LA came to Exiles' defense 6935 | -8/Mines | Destroyed by NK-0LA with NK-0LA's Tesla Doomcannon Last Messages --------------- 06715_ Acquired 21 matter. 06723_ Acquired 18 matter. 06815_ Acquired 45 matter. 06826_ Acquired 2 matter. 06829_ Acquired 11 matter. 06831_ Acquired 10 matter. 06834_ Acquired 5 matter. 06848_ Acquired 38 matter. 06877_ EXIT=FOUND A strange signal echoes through the mines. LOCATION=UNKNOWN GOAL=ESCAPE 06901_ Searching scrap... 06901_ Found Assault Cannon. 06901_ Found Trap Scanner. 06901_ Found Hrd. Medium Armor Plating. 06901_ Found 36 Matter. 06902_ Acquired 36 matter. 06914_ NK-0LA: "I came as fast as I could... Wait, it was you!" 06921_ T-07 Excavator destroyed. Map ----- +----------------------------------------------------+ | | | ?????????????????????????????????????????? | | ?????????????????????????????????????????? | | ?????????????????????????????????????????? | | ?????????????????????????????????????????? | | ?????????????????????????????????????????? | | ?????????????????????????????????????????? | | ?????????????????????????????????????????? | | ?????????????????????????????????????????? | | ?????????????????????????????????????????? | | ?????????????????????????????????????????? | | ?????????????????????????????????????????? | | ?????????????????????????????????????????? | | ?????????????????????????????###?????????? | | ??????????##????????????????? ##???????? | | ?????????## ????????????????? ##??????? | | ?????????# ????????????????? ???????? | | ????????## ???????????????? ???????? | | ????????# #??????????????? ???????? | | ????????# #??????????????# ???????? | | ?????????? #?????????????# #???????? | | ???????????# ##???????????# #???????? | | ????????????# #??????????## ##??????? | | ???????????## #########??# ##?????? | | ???????????# !%| #??# ####??? | | ???????????# @*= x ##### ##?? | | ??????????# ########! #?? | | ?????????# ?????????#! ## #?? | | ?????????# ???????????######## ##???#?? | | ?????????#????????????????????# ##??????? | | ?????????????????????????????? ##???????? | | ?????????????????????????????? ##????????? | | ????????????????????????????? ??????????? | | ????????????????????????????? #??????????? | | ????????????????????????????? ???????????? | | ???????????????????????????? ???????????? | | ???????????????????????????? ???????????? | | ???????????????????????????? ????????????? | | ??????????????????????????? ????????????? | | ???????????????????????????? ????????????? | | ?????????????????????????????????????????? | | ?????????????????????????????????????????? | | ?????????????????????????????????????????? | | ?????????????????????????????????????????? | | ?????????????????????????????????????????? | | ?????????????????????????????????????????? | | ?????????????????????????????????????????? | | ?????????????????????????????????????????? | | ?????????????????????????????????????????? | | ?????????????????????????????????????????? | +----------------------------------------------------+ Best States ------------- Heat Dissipation 75 Energy Generation 28 Energy Capacity 490 Matter Stores 500 Matter Capacity 500 Sight Range 16 Terrain Scan Density 10 Evasion (%) 50 Targeting Accuracy 12 Armor Integrity Analysis 40 Recoil Reduction 3 Item Schematics ----------------- None Robot Schematics ------------------ None Fabricated ------------ Nothing Alien Tech Used ----------------- None Achievements -------------- None Challenges ------------ None RPGLIKE | -11 -10 -10 -9 -9 -9 -8 --------- Run | Yrd Mat Min Mat Min Exi Min Levels Raised 9 | . 1 1 6 1 . . XP Earned 17198 | 3000 2655 1650 8311 1015 67 500 XP Spent 12600 | 2550 1900 1400 6750 . . . Upgrades 15 | 5 2 1 7 . . . Power Slot 1 | . . . 1 . . . Propulsion Slot 2 | 1 . . 1 . . . Utility Slot 4 | 1 1 . 2 . . . Weapon Slot 5 | 2 1 1 1 . . . Inventory Capacity 3 | 1 . . 2 . . . Protomatter Created 1426 | . 208 47 762 255 154 . Integrity Restored 2232 | . 505 . 851 214 662 . Core 1657 | . 442 . 470 83 662 . Parts 575 | . 63 . 381 131 . . Protomatter Decayed 578 | . 35 . 345 189 9 . Game ------ Seed IntegrityMomentumPod Manual? 0 Play Time 00:29:26 Cumulative 1881.5 hours Start 2024.01.21 @ 19:31:09 End 2024.01.21 @ 20:00:25 Sessions 1 Manual Loads 0 Difficulty Rogue Special Mode Winter2019/RPGLIKE Game No. 660 Rogue 660 Adventurer 0 Explorer 0 Win Type - Total 147 Types 29/13/65/7/1/2/28/1/1 Lore% 96 Gallery% 96 Achievement% 88 Wizard Run 0 Options --------- ASCII 0 Keyboard 0 Movement Numpad Keybinds 0 Fullscreen 2 Font 18/SmallcapsGlow Map View 76x50 Zoom Use 0% Tactical HUD 1 Map Filters NONE Filters NONE Steam 1 RUN: ec22ee88-f534-41a7-8245-2ff114683878